bitfinex/quotes_BTCUSD_20250414
["timestamp","ask_amount","ask_price","bid_price","bid_amount"]
[1744634838626,0.01174,85172.0,85158.0,0.35769854]
[1744634839140,0.34,85171.0,85158.0,0.35769854]
[1744634839709,0.001,85174.0,85158.0,0.35769854]
[1744634839932,0.001,85174.0,85158.0,0.40339854]
[1744634841532,0.235814,85174.0,85158.0,0.40339854]
[1744634841709,0.001,85174.0,85158.0,0.40339854]
[1744634841919,0.01274,85174.0,85158.0,0.40239854]
[1744634842119,0.01274,85174.0,85158.0,0.40539854]
[1744634842342,0.001,85174.0,85158.0,0.40539854]
[1744634842518,0.001,85174.0,85158.0,0.40439854]
[1744634843038,0.001,85174.0,85158.0,0.40839854]
[1744634844917,0.01174,85173.0,85158.0,0.40839854]
[1744634845354,0.235813,85174.0,85158.0,0.40839854]
[1744634845755,0.01174,85173.0,85158.0,0.40839854]
[1744634845963,0.235813,85174.0,85158.0,0.40839854]
[1744634846163,0.001,85174.0,85158.0,0.40839854]
[1744634846362,0.01274,85174.0,85158.0,0.40839854]
[1744634846562,0.246559,85172.0,85158.0,0.40839854]
[1744634846798,0.247553,85174.0,85158.0,0.40839854]
[1744634847205,0.247553,85174.0,85170.0,0.234821]
[1744634847206,0.2465778,85174.0,85170.0,0.234821]
[1744634847413,0.234816,85173.0,85171.0,0.12084154]
[1744634847573,0.2465778,85174.0,85171.0,0.36740354]
[1744634847777,0.234816,85173.0,85171.0,0.13258254]
[1744634848464,0.2465778,85174.0,85171.0,0.36740354]
[1744634848663,0.2348378,85174.0,85172.0,0.234818]
[1744634848867,0.2348378,85174.0,85171.0,0.13258254]
[1744634848868,0.234818,85172.0,85171.0,0.12084154]
[1744634849068,0.234817,85173.0,85171.0,0.12184154]
[1744634849476,0.0117648,85174.0,85171.0,0.12184154]
[1744634849720,0.234817,85173.0,85171.0,0.35666254]
[1744634849920,0.2465828,85174.0,85171.0,0.35666254]
[1744634850100,0.234816,85173.0,85171.0,0.12184154]
[1744634850298,0.234816,85173.0,85171.0,0.12084154]
[1744634850501,0.234818,85172.0,85171.0,0.12084154]
[1744634850815,0.234816,85173.0,85171.0,0.35566254]
[1744634851218,0.234816,85173.0,85171.0,0.12084154]
[1744634851382,0.234816,85173.0,85171.0,0.12184154]
[1744634851597,0.0117648,85174.0,85171.0,0.35666254]
[1744634851795,2.48e-05,85174.0,85171.0,0.13358254]
[1744634852085,0.2348388,85174.0,85172.0,0.234817]
[1744634852431,2.48e-05,85174.0,85173.0,0.234816]
[1744634852722,2.48e-05,85174.0,85173.0,0.35565754]
[1744634855052,2.48e-05,85174.0,85173.0,0.35765754]
[1744634855457,2.48e-05,85174.0,85173.0,0.36165754]
[1744634855665,2.48e-05,85174.0,85173.0,0.49661754]
[1744634856577,2.48e-05,85174.0,85173.0,0.49261754]
[1744634857458,2.48e-05,85174.0,85173.0,0.49461754]
[1744634857706,2.48e-05,85174.0,85173.0,0.49761754]
[1744634858056,2.48e-05,85174.0,85173.0,0.49461754]
[1744634858522,2.48e-05,85174.0,85173.0,0.49761754]
[1744634859613,2.48e-05,85174.0,85173.0,0.12784154]
[1744634859614,0.2348378,85174.0,85173.0,0.12784154]
[1744634859787,0.2348378,85174.0,85173.0,0.007]
[1744634860379,0.73944132,85174.0,85173.0,0.007]
[1744634860586,0.63497865,85174.0,85173.0,0.004]
[1744634860936,0.63497865,85174.0,85173.0,0.005]
[1744634861187,0.63497865,85174.0,85173.0,0.001]
[1744634861392,0.234868,85154.0,85153.0,0.13496]
[1744634861589,0.234868,85154.0,85153.0,0.25580154]
[1744634861969,0.246634,85147.0,85142.0,0.011745]
[1744634862168,0.011743,85150.0,85142.0,0.011745]
[1744634862169,0.011743,85150.0,85144.0,0.25580154]
[1744634862512,0.246622,85150.0,85147.0,0.234886]
[1744634862667,0.011743,85150.0,85148.0,0.12084154]
[1744634863212,0.011743,85152.0,85148.0,0.35572354]
[1744634863777,0.011743,85152.0,85149.0,0.246623]
[1744634863972,0.246619,85152.0,85148.0,0.13258554]
[1744634864181,0.246622,85151.0,85148.0,0.12484154]
[1744634864580,0.246622,85151.0,85148.0,0.35872454]
[1744634864781,0.246622,85151.0,85148.0,0.36272454]
[1744634864998,0.246622,85151.0,85148.0,0.37446854]
[1744634865279,0.246617,85152.0,85149.0,0.246625]
[1744634866477,0.234877,85151.0,85149.0,0.011744]
[1744634866706,0.234877,85151.0,85149.0,0.246626]
[1744634866907,0.011743,85151.0,85148.0,0.13258554]
[1744634867144,0.011743,85151.0,85149.0,0.004]
[1744634867431,0.246617,85152.0,85150.0,0.234878]
[1744634867664,0.22827928,85152.0,85149.0,0.018744]
[1744634867898,0.22827928,85152.0,85149.0,0.249625]
[1744634868267,0.246614,85153.0,85150.0,0.234879]
[1744634868466,0.246614,85153.0,85149.0,0.249625]
[1744634868883,0.011743,85152.0,85149.0,0.246625]
[1744634869222,0.011743,85152.0,85149.0,0.249625]
[1744634869474,0.246614,85153.0,85150.0,0.234878]
[1744634869838,0.246614,85153.0,85150.0,0.238878]
[1744634870039,0.246614,85153.0,85150.0,0.234878]
[1744634870678,0.011743,85153.0,85150.0,0.246621]
[1744634870885,0.011743,85153.0,85150.0,0.249621]
[1744634871086,0.011743,85153.0,85150.0,0.253621]
[1744634871470,0.246613,85156.0,85152.0,0.234874]
[1744634871796,0.234866,85155.0,85152.0,0.234874]
[1744634872139,0.246613,85156.0,85153.0,0.234869]
[1744634872940,0.234863,85156.0,85154.0,0.011743]
[1744634873109,0.234863,85156.0,85153.0,0.234869]
[1744634873311,0.246606,85156.0,85153.0,0.234869]
[1744634873469,0.2465709,85158.0,85154.0,0.24661]
[1744634873673,0.01454085,85167.0,85162.0,0.234845]
[1744634873876,0.34,85163.0,85161.0,0.011742]
[1744634874073,0.586586,85163.0,85160.0,0.234849]
[1744634874834,0.34,85161.0,85159.0,0.246596]
[1744634875483,0.34,85161.0,85160.0,0.234852]
[1744634876056,0.34,85161.0,85159.0,0.247596]
[1744634876251,0.011742,85162.0,85160.0,0.234852]
[1744634876553,0.586588,85162.0,85160.0,0.235852]
[1744634876775,0.586588,85162.0,85160.0,0.001]
[1744634876976,0.234849,85161.0,85160.0,0.001]
[1744634877136,0.234849,85161.0,85160.0,0.002]
[1744634877342,0.234849,85161.0,85160.0,0.001]
[1744634877658,0.234849,85161.0,85160.0,0.002]
[1744634877863,0.234849,85161.0,85160.0,0.001]
[1744634878183,0.234849,85161.0,85158.0,0.246598]
[1744634878388,0.234849,85161.0,85160.0,0.001]
[1744634878545,0.234849,85161.0,85160.0,0.002]
[1744634878938,0.234849,85161.0,85160.0,0.001]
[1744634879181,0.234849,85161.0,85160.0,0.002]
[1744634879594,0.234849,85161.0,85160.0,0.001]
[1744634879974,0.24938985,85161.0,85160.0,0.001]
[1744634880175,0.32050275,85161.0,85160.0,0.001]
[1744634880395,0.32050275,85161.0,85160.0,0.002]
[1744634880806,0.33145925,85161.0,85160.0,0.002]
[1744634881191,0.33145925,85161.0,85160.0,0.001]
[1744634881389,0.234863,85156.0,85155.0,0.01833609]
[1744634882604,0.2567761,85156.0,85155.0,0.01833609]
[1744634885382,0.26773874,85156.0,85155.0,0.01833609]
[1744634888239,0.24662,85151.0,85148.0,0.234883]
[1744634888648,0.24662,85151.0,85149.0,0.234881]
[1744634889049,0.0219131,85150.0,85149.0,0.234881]
[1744634889603,0.0219131,85150.0,85149.0,0.234882]
[1744634889806,0.58942285,85149.0,85148.0,0.001]
[1744634890030,0.63492285,85149.0,85148.0,0.001]
[1744634890230,0.66782969,85149.0,85148.0,0.001]
[1744634890714,0.011745,85139.0,85136.0,0.246662]
[1744634890883,0.234912,85138.0,85135.0,0.234919]
[1744634891083,0.0219131,85138.0,85135.0,0.246665]
[1744634891609,0.011744,85148.0,85145.0,0.234893]
[1744634891826,0.011743,85156.0,85145.0,0.234893]
[1744634891827,0.01187316,85163.0,85162.0,0.234846]
[1744634892058,8e-05,85184.0,85177.0,0.234805]
[1744634892268,8e-05,85184.0,85175.0,0.24655]
[1744634892269,0.011739,85183.0,85175.0,0.01174]
[1744634892439,0.011739,85183.0,85173.0,0.01174]
[1744634892440,0.234799,85179.0,85173.0,0.01174]
[1744634892602,0.35097645,85177.0,85174.0,0.246551]
[1744634892806,0.35097645,85177.0,85176.0,0.234807]
[1744634893082,0.01097645,85177.0,85175.0,0.234809]
[1744634893209,0.24578145,85177.0,85173.0,0.246553]
[1744634893431,0.011742,85161.0,85158.0,0.0465]
[1744634893635,0.011742,85161.0,85153.0,0.381491]
[1744634893636,0.011742,85158.0,85153.0,0.381491]
[1744634893844,0.234868,85154.0,85153.0,0.13488]
[1744634894150,0.234868,85154.0,85149.0,0.03007883]
[1744634894151,0.234879,85150.0,85149.0,0.01833483]
[1744634894622,0.574879,85150.0,85149.0,0.01833483]
[1744634895578,0.574879,85150.0,85149.0,0.02033483]
[1744634896098,0.574879,85150.0,85149.0,0.002]
[1744634896335,0.574879,85150.0,85149.0,0.02033901]
[1744634896536,0.574879,85150.0,85149.0,0.02133901]
[1744634897463,0.574879,85150.0,85149.0,0.01933901]
[1744634897649,0.574879,85150.0,85149.0,0.02033901]
[1744634898244,0.574879,85150.0,85149.0,0.002]
[1744634899411,0.58941985,85150.0,85149.0,0.002]
[1744634900490,0.60039388,85150.0,85149.0,0.001]
[1744634900821,0.246648,85142.0,85139.0,0.011745]
[1744634901227,0.246648,85142.0,85138.0,0.246657]
[1744634902028,0.234905,85141.0,85139.0,0.001]
[1744634902224,0.011744,85145.0,85139.0,0.247652]
[1744634902459,0.234901,85142.0,85139.0,0.001]
[1744634902630,0.234907,85140.0,85139.0,0.001]
[1744634903849,0.234929,85132.0,85131.0,0.0008448]
[1744634904243,0.234926,85133.0,85131.0,0.0008448]
[1744634904669,0.234929,85132.0,85131.0,0.0008448]
[1744634905199,0.58946985,85132.0,85131.0,0.0068448]
[1744634905346,0.61140998,85132.0,85131.0,0.0038448]
[1744634905560,0.62237815,85132.0,85131.0,0.0038448]
[1744634905780,0.62237815,85132.0,85131.0,0.0068448]
[1744634906239,0.62237815,85132.0,85131.0,0.0038448]
[1744634906526,0.62237815,85132.0,85131.0,0.0068448]
[1744634906929,0.62237815,85132.0,85131.0,0.0008448]
[1744634907155,1.08637815,85132.0,85131.0,0.0008448]
[1744634907306,1.20721969,85132.0,85131.0,0.0008448]
[1744634908286,1.08637815,85132.0,85131.0,0.0008448]
[1744634908505,1.03887815,85132.0,85131.0,0.0008448]
[1744634910919,1.03987815,85132.0,85131.0,0.0008448]
[1744634911642,1.03887815,85132.0,85131.0,0.0008448]
[1744634911766,1.03987815,85132.0,85131.0,0.0008448]
[1744634913036,1.17479815,85132.0,85131.0,0.0008448]
[1744634915583,1.22289815,85132.0,85131.0,0.0008448]
[1744634915743,1.46446817,85132.0,85131.0,0.0008448]
[1744634915953,1.51116817,85132.0,85131.0,0.0008448]
[1744634916377,1.39043969,85132.0,85131.0,0.0008448]
[1744634916578,1.38943969,85132.0,85131.0,0.0008448]
[1744634917051,1.39043969,85132.0,85131.0,0.0008448]
[1744634918426,1.39043969,85132.0,85131.0,8e-07]
[1744634918762,1.39143969,85132.0,85131.0,8e-07]
[1744634918971,1.51216817,85132.0,85131.0,8e-07]
[1744634919371,1.39143969,85132.0,85131.0,8e-07]
[1744634919584,1.39043969,85132.0,85131.0,8e-07]
[1744634919797,1.39343969,85132.0,85131.0,8e-07]
[1744634920201,1.44343969,85132.0,85131.0,8e-07]
[1744634920421,0.63480785,85118.0,85117.0,8e-07]
[1744634920621,0.75564939,85118.0,85117.0,8e-07]
[1744634920759,0.76661756,85118.0,85117.0,8e-07]
[1744634921013,0.78855769,85118.0,85117.0,8e-07]
[1744634922919,0.79355769,85118.0,85117.0,8e-07]
[1744634923472,0.91428617,85118.0,85117.0,8e-07]
[1744634923684,1.05052617,85118.0,85117.0,8e-07]
[1744634925340,1.1656153,85118.0,85117.0,8e-07]
[1744634925672,1.18015615,85118.0,85117.0,8e-07]
[1744634925886,1.1656153,85118.0,85117.0,8e-07]
[1744634926074,1.18015615,85118.0,85117.0,8e-07]
[1744634927672,1.17815615,85118.0,85117.0,8e-07]
[1744634928627,1.17515615,85118.0,85117.0,8e-07]
[1744634929030,1.17815615,85118.0,85117.0,8e-07]
[1744634929235,0.87078434,85118.0,85117.0,8e-07]
[1744634930069,0.76165615,85118.0,85117.0,8e-07]
[1744634934508,0.62541615,85118.0,85117.0,8e-07]
[1744634935374,0.235003,85105.0,85104.0,0.0075456]
[1744634935770,0.235003,85105.0,85104.0,0.02589276]
[1744634935995,0.24597117,85105.0,85104.0,0.02589276]
[1744634936261,0.24597117,85105.0,85104.0,0.01834716]
[1744634936441,0.24597117,85105.0,85104.0,0.02034716]
[1744634937162,0.24597117,85105.0,85104.0,0.02234716]
[1744634938220,0.24597117,85105.0,85104.0,0.004]
[1744634938403,0.26051202,85105.0,85104.0,0.004]
[1744634938635,0.28246461,85105.0,85104.0,0.004]
[1744634939509,0.235012,85102.0,85101.0,0.002]
[1744634940527,0.235012,85102.0,85101.0,0.004]
[1744634940882,0.23501,85103.0,85101.0,0.004]
[1744634941274,0.235009,85103.0,85101.0,0.004]
[1744634941447,0.235012,85102.0,85101.0,0.004]
[1744634941947,0.235012,85102.0,85101.0,0.002]
[1744634942103,0.235012,85102.0,85101.0,0.004]
[1744634942303,0.235012,85102.0,85101.0,0.006]
[1744634942550,0.235012,85102.0,85101.0,0.004]
[1744634942929,0.235012,85102.0,85101.0,0.006]
[1744634943704,0.24599672,85102.0,85101.0,0.006]
[1744634943917,0.26796631,85102.0,85101.0,0.006]
[1744634944132,0.62250716,85102.0,85101.0,0.006]
[1744634944563,1.03900716,85102.0,85101.0,0.006]
[1744634945006,1.1598487,85102.0,85101.0,0.006]
[1744634945219,1.2063487,85102.0,85101.0,0.004]
[1744634945412,1.2063487,85102.0,85101.0,0.002]
[1744634945567,1.02446631,85102.0,85101.0,0.002]
[1744634945770,1.02446631,85102.0,85101.0,0.003]
[1744634946519,0.37395431,85102.0,85101.0,0.002]
[1744634946744,0.03395431,85102.0,85101.0,0.237014]
[1744634947082,0.03295431,85102.0,85101.0,0.237014]
[1744634947558,0.01098472,85102.0,85101.0,0.237014]
[1744634947760,0.01098472,85102.0,85101.0,0.35785554]
[1744634948153,0.011749,85108.0,85106.0,0.234999]
[1744634948337,0.011749,85108.0,85106.0,0.235001]
[1744634948538,0.234995,85108.0,85106.0,0.235001]
[1744634948740,0.246742,85109.0,85101.0,0.12284154]
[1744634948944,0.246742,85109.0,85101.0,0.12484154]
[1744634949148,0.011749,85109.0,85101.0,0.13559154]
[1744634949412,0.01098967,85108.0,85101.0,0.13559154]
[1744634949595,0.01175,85104.0,85101.0,0.237014]
[1744634949749,0.23501,85103.0,85101.0,0.237014]
[1744634949952,0.246756,85104.0,85101.0,0.237014]
[1744634950145,0.01098967,85103.0,85101.0,0.238014]
[1744634950489,0.01098967,85103.0,85101.0,0.237014]
[1744634950698,0.01098967,85103.0,85101.0,0.238014]
[1744634951263,0.01098967,85102.0,85101.0,0.239014]
[1744634951493,0.01098967,85102.0,85101.0,0.004]
[1744634951692,0.01098967,85102.0,85101.0,0.003]
[1744634951944,0.01098967,85102.0,85101.0,0.237014]
[1744634952149,0.01098967,85102.0,85101.0,0.238014]
[1744634952323,0.24600167,85102.0,85101.0,0.004]
[1744634952528,0.01098967,85102.0,85101.0,0.002]
[1744634952910,0.01098967,85102.0,85101.0,0.004]
[1744634953559,0.235009,85103.0,85101.0,0.004]
[1744634953866,0.01099329,85102.0,85101.0,0.004]
[1744634954373,0.01099329,85102.0,85101.0,0.238014]
[1744634954572,0.01099329,85102.0,85101.0,0.239014]
[1744634955198,0.01099329,85102.0,85101.0,0.238014]
[1744634955397,0.01099329,85102.0,85101.0,0.239014]
[1744634955597,0.01099329,85102.0,85101.0,0.238014]
[1744634955826,0.01099329,85102.0,85101.0,0.239014]
[1744634955958,0.01099329,85102.0,85101.0,0.238014]
[1744634956342,0.01099329,85102.0,85101.0,0.239014]
[1744634956541,0.01099329,85102.0,85101.0,0.004]
[1744634958937,0.246757,85104.0,85101.0,0.239014]
[1744634959439,0.246759,85104.0,85101.0,0.004]
[1744634959596,0.23501,85103.0,85101.0,0.004]
[1744634959802,0.23501,85103.0,85101.0,0.239014]
[1744634960210,0.23501,85103.0,85101.0,0.238014]
[1744634960430,0.23501,85103.0,85101.0,0.239014]
[1744634960633,0.23501,85103.0,85101.0,0.238014]
[1744634961034,0.01175,85105.0,85102.0,0.23501]
[1744634961234,0.351749,85107.0,85105.0,0.235003]
[1744634961486,0.01175,85106.0,85104.0,0.235004]
[1744634961690,0.586748,85107.0,85104.0,0.235004]
[1744634961896,0.351749,85107.0,85103.0,0.235009]
[1744634962210,0.246753,85106.0,85103.0,0.235009]
[1744634962439,0.246754,85105.0,85102.0,0.23501]
[1744634962582,0.01175,85105.0,85102.0,0.23501]
[1744634962822,0.234992,85109.0,85102.0,0.23501]
[1744634962823,0.36628985,85113.0,85105.0,0.01175]
[1744634963029,0.351749,85109.0,85106.0,0.234998]
[1744634963351,0.586743,85109.0,85106.0,0.234998]
[1744634964255,0.587743,85109.0,85106.0,0.234998]
[1744634964639,0.587743,85109.0,85107.0,0.234998]
[1744634964841,0.587743,85109.0,85106.0,0.234998]
[1744634965219,0.246746,85108.0,85105.0,0.235003]
[1744634965564,0.011749,85108.0,85106.0,0.235]
[1744634965766,0.587741,85109.0,85106.0,0.235]
[1744634966245,0.587741,85109.0,85105.0,0.235003]
[1744634966246,0.246746,85108.0,85105.0,0.235003]
[1744634966472,0.011749,85108.0,85106.0,0.235]
[1744634967068,0.58674,85110.0,85107.0,0.234998]
[1744634967233,0.001,85109.0,85107.0,0.234998]
[1744634967579,0.246743,85109.0,85106.0,0.235]
[1744634967795,0.001,85108.0,85107.0,0.234998]
[1744634968035,0.246743,85109.0,85107.0,0.234998]
[1744634968448,0.246743,85109.0,85107.0,0.234997]
[1744634968746,0.246743,85109.0,85104.0,0.235003]
[1744634968747,0.246747,85107.0,85104.0,0.235003]
[1744634969047,0.246744,85109.0,85105.0,0.01175]
[1744634969204,0.246744,85109.0,85106.0,0.235001]
[1744634969410,0.247744,85109.0,85106.0,0.235001]
[1744634969613,0.58674,85110.0,85107.0,0.234996]
[1744634970007,0.011749,85110.0,85106.0,0.235001]
[1744634970212,0.234994,85109.0,85106.0,0.235001]
[1744634970419,0.234996,85108.0,85106.0,0.235001]
[1744634970758,0.34,85111.0,85110.0,0.23499]
[1744634970961,0.34,85111.0,85110.0,0.28239]
[1744634971100,0.34,85111.0,85110.0,0.0474]
[1744634971725,0.34,85111.0,85110.0,0.28239]
[1744634971923,0.341,85111.0,85110.0,0.28239]
[1744634972125,0.001,85111.0,85110.0,0.28239]
[1744634973013,0.341,85111.0,85110.0,0.0966]
[1744634973213,0.343,85111.0,85110.0,0.0966]
[1744634973424,0.577987,85111.0,85110.0,0.0966]
[1744634973556,0.343,85111.0,85110.0,0.0966]
[1744634973758,0.002,85111.0,85110.0,0.45243154]
[1744634974033,0.011748,85120.0,85114.0,0.011748]
[1744634974213,0.34,85119.0,85117.0,0.234968]
[1744634974611,0.351748,85119.0,85116.0,0.234968]
[1744634974816,0.011748,85118.0,85114.0,0.246721]
[1744634975139,0.34,85117.0,85115.0,0.12084154]
[1744634975546,0.574973,85117.0,85115.0,0.12084154]
[1744634976625,0.574971,85117.0,85115.0,0.12084154]
[1744634976828,0.34,85117.0,85115.0,0.12084154]
[1744634976979,0.001,85117.0,85116.0,0.234973]
[1744634978243,0.01194065,85126.0,85125.0,0.234948]
[1744634978449,0.011746,85132.0,85129.0,0.234935]
[1744634978675,0.246673,85133.0,85130.0,0.234934]
[1744634979005,0.34,85133.0,85131.0,0.234929]
[1744634979149,0.011746,85133.0,85130.0,0.0497]
[1744634979348,0.58667,85134.0,85130.0,0.284632]
[1744634979605,0.35163822,85134.0,85130.0,0.061446]
[1744634979979,0.35163822,85134.0,85132.0,0.234928]
[1744634980305,0.01163822,85134.0,85132.0,0.234928]
[1744634980450,0.34,85135.0,85134.0,0.234923]
[1744634981266,0.351745,85140.0,85138.0,0.234911]
[1744634981462,0.586653,85140.0,85134.0,0.36751054]
[1744634981708,0.011745,85139.0,85136.0,0.234918]
[1744634981916,0.36324789,85140.0,85138.0,0.234912]
[1744634982359,0.02324789,85140.0,85138.0,0.234912]
[1744634982935,0.02324789,85140.0,85137.0,0.12084154]
[1744634983140,0.34,85138.0,85137.0,0.12084154]
[1744634983368,0.34,85138.0,85137.0,0.35575654]
[1744634983573,0.574912,85138.0,85137.0,0.12084154]
[1744634983772,0.34,85138.0,85137.0,0.12084154]
[1744634983949,0.011745,85136.0,85131.0,0.011746]
[1744634984149,0.011745,85136.0,85132.0,0.12084154]
[1744634984358,0.011745,85137.0,85132.0,0.13258754]
[1744634984536,0.011745,85137.0,85135.0,0.23492]
[1744634985876,0.011745,85136.0,85133.0,0.234924]
[1744634986059,0.011745,85137.0,85135.0,0.23492]
[1744634986379,0.011745,85137.0,85135.0,0.23482]
[1744634986640,0.57491,85139.0,85137.0,0.234915]
[1744634986811,0.57491,85139.0,85136.0,0.234913]
[1744634986812,0.586655,85139.0,85136.0,0.234913]
[1744634986951,0.24666,85138.0,85135.0,0.001]
[1744634987358,0.011745,85138.0,85135.0,0.235918]
[1744634987578,0.011745,85138.0,85136.0,0.234916]
[1744634988740,0.34,85139.0,85137.0,0.234913]
[1744634989280,0.586655,85139.0,85136.0,0.234916]
[1744634989917,0.587655,85139.0,85137.0,0.234915]
[1744634990440,0.586655,85139.0,85137.0,0.234915]
[1744634990734,0.34,85139.0,85137.0,0.234915]
[1744634990933,0.57491,85139.0,85137.0,0.234915]
[1744634991300,0.34,85139.0,85137.0,0.234915]
[1744634991740,0.341,85139.0,85137.0,0.234915]
[1744634991900,0.011745,85136.0,85134.0,0.234923]
[1744634992097,0.011745,85137.0,85134.0,0.234923]
[1744634992297,0.011745,85137.0,85135.0,0.23492]
[1744634992503,0.246659,85138.0,85135.0,0.23492]
[1744634993249,0.34,85137.0,85135.0,0.23492]
[1744634994007,0.011746,85133.0,85130.0,0.0497]
[1744634994235,0.246663,85136.0,85135.0,0.001]
[1744634994752,0.011746,85135.0,85133.0,0.234926]
[1744634994980,0.246667,85135.0,85133.0,0.234926]
[1744634995310,0.011746,85135.0,85133.0,0.234926]
[1744634995516,0.246667,85135.0,85133.0,0.234926]
[1744634995718,0.011746,85135.0,85133.0,0.234926]
[1744634996834,0.246663,85136.0,85133.0,0.234926]
[1744634996997,0.011745,85136.0,85133.0,0.234926]
[1744634997202,0.011745,85136.0,85134.0,0.234923]
[1744634997466,0.586661,85137.0,85134.0,0.234923]
[1744634997692,0.586661,85137.0,85135.0,0.23492]
[1744634997901,0.34,85138.0,85137.0,0.234915]
[1744634998158,0.586657,85138.0,85135.0,0.234921]
[1744634998380,0.586657,85138.0,85136.0,0.234916]
[1744634998621,0.011745,85137.0,85135.0,0.23492]
[1744634998857,0.246661,85137.0,85135.0,0.23492]
[1744634999091,0.586658,85138.0,85136.0,0.234918]
[1744634999344,0.586658,85138.0,85135.0,0.23492]
[1744634999763,0.011745,85139.0,85136.0,0.234917]
[1744635000031,0.011745,85139.0,85137.0,0.234915]
[1744635000196,0.34,85138.0,85137.0,0.234915]
[1744635000527,0.34,85138.0,85136.0,0.234918]
[1744635000731,0.34,85138.0,85137.0,0.234915]
[1744635001082,0.34,85144.0,85141.0,0.234901]
[1744635001409,0.574896,85144.0,85141.0,0.234901]
[1744635001749,0.586634,85147.0,85144.0,0.234895]
[1744635001950,0.586634,85147.0,85144.0,0.234894]
[1744635002170,0.34,85147.0,85146.0,0.23489]
[1744635002370,0.34,85147.0,85145.0,0.234892]
[1744635002503,0.34,85147.0,85142.0,0.246646]
[1744635002504,0.586632,85147.0,85144.0,0.234891]
[1744635002708,0.34,85147.0,85144.0,0.234891]
[1744635003030,0.351744,85147.0,85145.0,0.234893]
[1744635003245,0.586632,85147.0,85145.0,0.234893]
[1744635003426,0.011744,85144.0,85142.0,0.234901]
[1744635003595,0.34,85145.0,85140.0,0.246652]
[1744635003790,0.34,85145.0,85143.0,0.234898]
[1744635004656,0.34,85145.0,85144.0,0.234896]
[1744635006238,0.011744,85146.0,85144.0,0.234896]
[1744635007204,0.001,85145.0,85144.0,0.234896]
[1744635007406,0.349234,85146.0,85144.0,0.234896]
[1744635007759,0.350234,85146.0,85144.0,0.234896]
[1744635007959,0.341,85146.0,85144.0,0.234896]
[1744635008463,0.001,85146.0,85145.0,0.234893]
[1744635009468,0.011744,85148.0,85145.0,0.234893]
[1744635009713,0.3404227,85149.0,85146.0,0.23489]
[1744635009908,0.3404227,85149.0,85148.0,0.281185]
[1744635009909,0.0004227,85149.0,85148.0,0.281185]
[1744635010111,0.0004227,85149.0,85148.0,0.44752654]
[1744635012617,0.0004227,85149.0,85148.0,0.45252654]
[1744635012820,0.0004227,85149.0,85148.0,0.44752654]
[1744635012996,0.0004227,85149.0,85148.0,0.45752654]
[1744635013566,0.0004227,85149.0,85148.0,0.45352654]
[1744635013768,0.0004227,85149.0,85148.0,0.45752654]
[1744635014228,0.0004227,85149.0,85148.0,0.46938797]
[1744635015426,7e-07,85149.0,85148.0,0.46938797]
[1744635015829,7e-07,85149.0,85148.0,0.60382797]
[1744635016446,7e-07,85149.0,85148.0,0.59982797]
[1744635016893,0.0010007,85149.0,85148.0,0.59982797]
[1744635017085,0.0010007,85149.0,85148.0,0.60782797]
[1744635017261,7e-07,85149.0,85148.0,0.60182797]
[1744635017443,7e-07,85149.0,85148.0,0.59382797]
[1744635017792,7e-07,85149.0,85148.0,0.60682797]
[1744635023043,7e-07,85149.0,85148.0,0.47238797]
[1744635023204,7e-07,85149.0,85148.0,0.60682797]
[1744635025376,7e-07,85149.0,85148.0,0.47238797]
[1744635025648,7e-07,85149.0,85148.0,0.60682797]
[1744635029484,7e-07,85149.0,85148.0,0.59382797]
[1744635029879,7e-07,85149.0,85148.0,0.60882797]
[1744635031754,7e-07,85149.0,85148.0,1.02752797]
[1744635033912,7e-07,85149.0,85148.0,2.12600797]
[1744635036087,7e-07,85149.0,85148.0,1.99156797]
[1744635036287,7e-07,85149.0,85148.0,1.88790654]
[1744635036415,7e-07,85149.0,85148.0,2.02230654]
[1744635037061,7e-07,85149.0,85148.0,2.00730654]
[1744635037562,7e-07,85149.0,85148.0,2.01030654]
[1744635037723,7e-07,85149.0,85148.0,1.59160654]
[1744635038058,7e-07,85149.0,85148.0,1.58860654]
[1744635038265,7e-07,85149.0,85148.0,1.45820654]
[1744635038445,7e-07,85149.0,85148.0,1.59432654]
[1744635038626,7e-07,85149.0,85148.0,1.59232654]
[1744635039026,7e-07,85149.0,85148.0,1.59632654]
[1744635039221,7e-07,85149.0,85148.0,1.46220654]
[1744635045870,0.2420194,85160.0,85157.0,0.234859]
[1744635046411,0.0071654,85160.0,85158.0,0.234856]
[1744635046612,0.0071654,85160.0,85157.0,0.234859]
[1744635046812,0.234861,85157.0,85155.0,0.234863]
[1744635047012,0.011743,85156.0,85155.0,0.12084154]
[1744635047254,0.23486,85157.0,85155.0,0.12084154]
[1744635047463,0.23486,85157.0,85149.0,0.011744]
[1744635047464,0.246622,85151.0,85141.0,0.011745]
[1744635047616,0.246622,85151.0,85148.0,0.004]
[1744635047617,0.234882,85149.0,85148.0,0.004]
[1744635048428,0.246636,85146.0,85143.0,0.234898]
[1744635048632,0.011744,85147.0,85144.0,0.234893]
[1744635048832,0.011744,85145.0,85142.0,0.234901]
[1744635049074,0.246632,85147.0,85143.0,0.234898]
[1744635049075,0.011744,85146.0,85143.0,0.234898]
[1744635049279,0.011744,85145.0,85142.0,0.234901]
[1744635049486,0.246636,85146.0,85143.0,0.234898]
[1744635050302,0.011744,85147.0,85145.0,0.234893]
[1744635050506,0.246632,85147.0,85144.0,0.234894]
[1744635050819,0.246632,85147.0,85143.0,0.01833818]
[1744635050820,0.234896,85144.0,85143.0,0.01833818]
[1744635051039,0.280896,85144.0,85143.0,0.01833818]
[1744635051249,0.280896,85144.0,85143.0,0.02033818]
[1744635052464,0.280896,85144.0,85143.0,0.004]
[1744635052657,0.280896,85144.0,85143.0,0.02033925]